fUST/lending_fUST_20240725
["ID","MTS","AMOUNT","RATE_DAILY","PERIOD"]
[333093772,1721860246997,-1028.43,0.0001452,2]
[333093773,1721860247008,-3932.71,0.0001452,2]
[333093774,1721860247018,-1298.92,0.0001452,2]
[333093775,1721860247027,-8703.36,0.0001452,2]
[333093776,1721860247037,-1207.7,0.0001452,2]
[333093777,1721860247047,-4019.84,0.0001452,2]
[333093778,1721860247058,-3867.63,0.0001452,2]
[333093779,1721860247067,-1907.31,0.0001452,2]
[333093780,1721860247077,-1487.03,0.0001452,2]
[333093781,1721860247087,-601.52,0.0001452,2]
[333093782,1721860247098,-500.0,0.0001452,2]
[333093783,1721860247108,-151.0,0.0001452,2]
[333093784,1721860247119,-590.38,0.0001452,2]
[333093785,1721860247130,-1541.48,0.0001452,2]
[333093786,1721860247139,-586.07,0.0001452,2]
[333093787,1721860247149,-562.03,0.0001452,2]
[333093788,1721860247160,-574.27,0.0001452,2]
[333093789,1721860247170,-500.0,0.0001452,2]
[333093791,1721860247182,-721.8,0.0001452,2]
[333093793,1721860247192,-546.76,0.0001452,2]
[333093795,1721860247204,-500.0,0.0001452,2]
[333093797,1721860247213,-500.0,0.0001452,2]
[333093798,1721860247223,-1773.17,0.0001452,2]
[333093799,1721860247235,-500.0,0.0001452,2]
[333093800,1721860247247,-500.0,0.0001452,2]
[333093801,1721860247258,-1102.75,0.0001452,2]
[333093802,1721860247270,-2310.68,0.0001452,2]
[333093803,1721860247285,-151.0,0.0001452,2]
[333093804,1721860247297,-500.0,0.0001452,2]
[333093805,1721860247308,-500.0,0.0001452,2]
[333093806,1721860247318,-1669.67,0.0001452,2]
[333093807,1721860247327,-1129.02,0.0001452,2]
[333093808,1721860247337,-2157.06492,0.0001452,2]
[333093809,1721860247538,-1345.15,0.0001452,2]
[333093810,1721860247549,-775.24,0.0001452,2]
[333093811,1721860247559,-500.0,0.0001452,2]
[333093813,1721860247572,-2157.06492,0.0001452,2]
[333093814,1721860247583,-1323.57,0.0001452,2]
[333093816,1721860247592,-500.0,0.0001452,2]
[333093818,1721860247602,-7901.59,0.0001452,2]
[333093820,1721860247612,-500.0,0.0001452,2]
[333093821,1721860247621,-500.0,0.0001452,2]
[333093822,1721860247632,-1237.08,0.0001452,2]
[333093823,1721860247644,-500.0,0.0001452,2]
[333093825,1721860247654,-1736.4194108,0.0001452,2]
[333093826,1721860247774,-471.5805892,0.0001452,2]
[333093827,1721860247784,-2146.52,0.0001452,2]
[333093828,1721860247793,-2359.25193465,0.0001452,2]
[333093835,1721860248224,-1258.40917363,9.801e-05,2]
[333093836,1721860248235,-1258.40917363,9.9e-05,2]
[333093837,1721860248245,-500.0,0.00013698,2]
[333093838,1721860248255,-500.0,0.00013972,2]
[333093839,1721860248266,-749.92,0.00014246,2]
[333093840,1721860248277,-176.681886,0.00014246,2]
[333093841,1721860248288,-151.0,0.00014246,2]
[333093842,1721860248298,-1420.94806535,0.0001452,2]
[333093843,1721860248310,-2434.51,0.0001452,2]
[333093844,1721860248322,-500.0,0.0001452,2]
[333093845,1721860248333,-3006.519637,0.0001452,2]
[333093846,1721860248343,-3006.519637,0.0001452,2]
[333093847,1721860248354,-2586.90938913,0.0001452,2]
[333093848,1721860248366,-2000.0,0.0001452,2]
[333093859,1721861225166,-338.5136921,8.577e-05,2]
[333093860,1721861225196,-200.0,8.67e-05,2]
[333093861,1721861225223,-4056.792128,8.729e-05,2]
[333093862,1721861225249,-338.5136921,8.752e-05,2]
[333093863,1721861225275,-250.0,9.487e-05,2]
[333093864,1721861225301,-250.0,9.513e-05,2]
[333093865,1721861225328,-250.0,9.539e-05,2]
[333093866,1721861225355,-250.0,9.565e-05,2]
[333093867,1721861225381,-250.0,9.591e-05,2]
[333093868,1721861225407,-250.0,9.617e-05,2]
[333093869,1721861225433,-250.0,9.643e-05,2]
[333093870,1721861225458,-250.0,9.669e-05,2]
[333093871,1721861225485,-300.0,9.672e-05,2]
[333093872,1721861225510,-23910.13278197,9.673e-05,2]
[333093873,1721861234158,-200.0,8.494e-05,2]
[333093874,1721861234182,-200.0,8.58e-05,2]
[333093875,1721861234204,-200.0,8.58e-05,2]
[333093876,1721861234232,-989.86721803,9.673e-05,2]
[333093877,1721861234257,-250.0,9.695e-05,2]
[333093878,1721861234282,-250.0,9.721e-05,2]
[333093879,1721861234310,-250.0,9.747e-05,2]
[333093880,1721861234335,-250.0,9.773e-05,2]
[333093881,1721861234361,-250.0,9.799e-05,2]
[333093882,1721861234384,-250.0,9.825e-05,2]
[333093883,1721861234408,-250.0,9.851e-05,2]
[333093884,1721861234432,-250.0,9.877e-05,2]
[333093885,1721861234456,-250.0,9.903e-05,2]
[333093886,1721861234485,-250.0,9.93e-05,2]
[333093887,1721861234507,-400.0,9.95e-05,2]
[333093888,1721861234530,-200.0,9.95e-05,2]
[333093889,1721861234556,-250.0,9.956e-05,2]
[333093890,1721861234581,-250.0,9.982e-05,2]
[333093891,1721861234606,-420.0,0.0001064,2]
[333093892,1721861234630,-587.0,0.00011704,2]
[333093893,1721861234652,-600.0,0.00011727,2]
[333093894,1721861234680,-919.7218057,0.0001247,2]
[333093895,1721861234704,-200.0,0.00013425,2]
[333093896,1721861234732,-90.87097627,0.00013688,2]
[333093898,1721861348378,-273.37336231,9.9e-05,2]
[333093899,1721861348403,-200.0,9.9e-05,2]
[333093900,1721861348428,-400.0,0.0001127,2]
[333093901,1721861354612,273.37336231,9.9e-05,2]
[333093902,1721861364056,273.37336231,9.9e-05,2]
[333093903,1721861371538,200.0,0.0001,2]
[333093904,1721861371635,400.0,0.0001137,2]
[333093905,1721861372752,273.37336231,9.9e-05,2]
[333093906,1721861375180,495.54367587,9.999e-05,2]
[333093907,1721861381259,273.37336231,9.9e-05,2]
[333093908,1721861389400,273.37336231,9.9e-05,2]
[333093909,1721861397905,273.37336231,9.9e-05,2]
[333093910,1721861406069,273.37336231,9.9e-05,2]
[333093911,1721861410959,154.69833824,0.0001,2]
[333093912,1721861414558,273.37336231,9.9e-05,2]
[333093913,1721861420392,154.69833824,9.9e-05,2]
[333093914,1721861421225,161.16282976,9.9e-05,2]
[333093915,1721861423003,270.53559754,9.9e-05,2]
[333093916,1721861423027,2.83776477,9.9e-05,2]
[333093917,1721861423231,231.79343084,9.9e-05,2]
[333093918,1721861423463,1625.75328864,9.9e-05,2]
[333093919,1721861425047,2049.46556647,9.9e-05,2]
[333093920,1721861425078,57.45458527,9.9e-05,2]
[333093921,1721861425176,1073.64340416,9.999e-05,2]
[333093922,1721861425585,2898.60460757,9.9e-05,2]
[333093923,1721861425616,3971.85274202,9.9e-05,2]
[333093928,1721861432882,-777.92281158,9.801e-05,2]
[333093946,1721861433351,-728.52885253,9.801e-05,2]
[333093949,1721861433364,-7491.51643912,9.9e-05,2]
[333093951,1721861433376,-3593.54584321,9.9e-05,2]
[333094084,1721861438013,-1114.75805542,9.9e-05,2]
[333094085,1721861438023,-154.74182857,9.9e-05,2]
[333094086,1721861438032,-301.13586327,9.9e-05,2]
[333094087,1721861438042,-164.20935766,9.9e-05,2]
[333094088,1721861438051,-154.71377951,9.9e-05,2]
[333094089,1721861438061,-2219.58591735,9.9e-05,2]
[333094090,1721861438071,-309.19609093,9.9e-05,2]
[333094091,1721861438080,-154.69833824,9.9e-05,2]
[333094092,1721861438090,-24900.0,0.00012666,2]
[333094093,1721861438099,-165.99572,0.00012692,2]
[333094094,1721861438108,-165.99572,0.00012733,2]
[333094095,1721861438117,-165.99572,0.00012774,2]
[333094096,1721861438126,-165.99572,0.00012816,2]
[333094097,1721861438136,-165.99572,0.00012857,2]
[333094098,1721861438148,-165.99572,0.00012898,2]
[333094099,1721861438159,-165.99572,0.0001294,2]
[333094100,1721861438170,-165.99572,0.00012981,2]
[333094101,1721861438181,-165.99572,0.00013022,2]
[333094102,1721861438192,-165.99572,0.00013064,2]
[333094103,1721861438203,-165.99572,0.00013105,2]
[333094104,1721861438214,-165.99572,0.00013146,2]
[333094105,1721861438224,-600.0,0.00013147,2]
[333094106,1721861438237,-165.99572,0.00013188,2]
[333094107,1721861438249,-165.99572,0.00013229,2]
[333094108,1721861438259,-165.99572,0.0001327,2]
[333094109,1721861438272,-165.99572,0.00013312,2]
[333094110,1721861438283,-165.99572,0.00013353,2]
[333094111,1721861438292,-190.0,0.00013425,2]
[333094112,1721861438304,-569.26893765,0.00013588,2]
[333094113,1721861438316,-78052.17994456,0.00013688,2]
[333094114,1721861438326,-218.15577942,0.00013688,2]
[333094115,1721861438336,-622.03874123,0.00013688,2]
[333094116,1721861438347,-67083.2858617,0.00013688,2]
[333094117,1721861438356,-500.0,0.00013698,2]
[333094118,1721861438367,-500.0,0.00013698,2]
[333094119,1721861438377,-500.0,0.00013698,2]
[333094120,1721861438389,-500.0,0.00013698,2]
[333094121,1721861438399,-307.34,0.00013698,2]
[333094122,1721861438410,-500.0,0.00013698,2]
[333094123,1721861438421,-500.0,0.00013698,2]
[333094124,1721861438431,-594.77,0.00013698,2]
[333094125,1721861438443,-500.0,0.00013698,2]
[333094126,1721861438454,-993.45,0.00013698,2]
[333094127,1721861438467,-500.0,0.00013698,2]
[333094128,1721861438477,-1229.48,0.00013698,2]
[333094129,1721861438488,-500.0,0.00013698,2]
[333094130,1721861438497,-500.0,0.00013698,2]
[333094131,1721861438508,-184.98242495,0.00013698,2]
[333094132,1721861438519,-1364.04,0.00013698,2]
[333094133,1721861438531,-500.0,0.00013698,2]
[333094134,1721861438542,-500.0,0.00013698,2]
[333094135,1721861438552,-500.0,0.00013698,2]
[333094136,1721861438563,-500.0,0.00013698,2]
[333094137,1721861438575,-500.0,0.00013698,2]
[333094138,1721861438584,-1746.78,0.00013698,2]
[333094139,1721861438594,-397.65130446,0.00013698,2]
[333094140,1721861438605,-500.0,0.00013698,2]
[333094141,1721861438615,-500.0,0.00013698,2]
[333094142,1721861438626,-345.54007751,0.00013698,2]
[333094143,1721861438637,-500.0,0.00013698,2]
[333094144,1721861438651,-500.0,0.00013698,2]
[333094145,1721861438660,-508.97254975,0.00013698,2]
[333094146,1721861438673,-500.0,0.00013698,2]
[333094147,1721861438683,-508.84,0.00013698,2]
[333094148,1721861438693,-1036.72,0.00013698,2]
[333094149,1721861438702,-1236.02,0.00013698,2]
[333094150,1721861438712,-1725.13,0.00013698,2]
[333094151,1721861438723,-500.0,0.00013698,2]
[333094152,1721861438733,-980.29,0.00013698,2]
[333094153,1721861438743,-500.0,0.00013698,2]
[333094154,1721861438752,-500.0,0.00013698,2]
[333094155,1721861438762,-645.56,0.00013698,2]
[333094156,1721861438772,-2582.22,0.00013698,2]
[333094157,1721861438782,-500.0,0.00013698,2]
[333094158,1721861438791,-500.0,0.00013698,2]
[333094159,1721861438801,-500.0,0.00013698,2]
[333094160,1721861438812,-1590.45,0.00013698,2]
[333094161,1721861438822,-500.0,0.00013698,2]
[333094162,1721861438831,-938.41,0.00013698,2]
[333094163,1721861438842,-500.0,0.00013698,2]
[333094164,1721861438851,-500.0,0.00013698,2]
[333094165,1721861438861,-500.0,0.00013698,2]
[333094166,1721861438871,-500.0,0.00013698,2]
[333094167,1721861438880,-331.44553089,0.00013698,2]
[333094168,1721861438890,-500.0,0.00013698,2]
[333094169,1721861438901,-500.0,0.00013698,2]
[333094170,1721861438911,-500.0,0.00013698,2]
[333094171,1721861438920,-1498.7,0.00013698,2]
[333094172,1721861438930,-1082.44,0.00013698,2]
[333094173,1721861438940,-500.0,0.00013698,2]
[333094174,1721861438949,-500.0,0.00013698,2]
[333094175,1721861438959,-500.0,0.00013698,2]
[333094176,1721861438969,-500.0,0.00013698,2]
[333094177,1721861438978,-500.0,0.00013698,2]
[333094178,1721861438988,-500.0,0.00013698,2]
[333094179,1721861438997,-657.48,0.00013698,2]
[333094180,1721861439007,-500.0,0.00013698,2]
[333094181,1721861439017,-981.37,0.00013698,2]
[333094182,1721861439027,-500.0,0.00013698,2]
[333094183,1721861439036,-500.0,0.00013698,2]
[333094184,1721861439045,-1396.25,0.00013698,2]
[333094185,1721861439055,-500.0,0.00013698,2]
[333094186,1721861439065,-500.0,0.00013698,2]
[333094187,1721861439074,-500.0,0.00013698,2]
[333094188,1721861439084,-1720.75,0.00013698,2]
[333094189,1721861439093,-500.0,0.00013698,2]
[333094190,1721861439244,-500.0,0.00013698,2]
[333094191,1721861439255,-500.0,0.00013698,2]
[333094192,1721861439265,-500.0,0.00013698,2]
[333094193,1721861439274,-1000.0,0.00013698,2]
[333094194,1721861439284,-659.32,0.00013698,2]
[333094195,1721861439293,-500.0,0.00013698,2]
[333094196,1721861439302,-500.0,0.00013698,2]
[333094197,1721861439312,-1363.71,0.00013698,2]
[333094198,1721861439321,-500.0,0.00013698,2]
[333094199,1721861439331,-560.94292177,0.00013698,2]
[333094200,1721861439341,-500.0,0.00013698,2]
[333094201,1721861439350,-500.0,0.00013698,2]
[333094202,1721861439360,-1169.77,0.00013698,2]
[333094203,1721861439369,-504.62,0.00013698,2]
[333094204,1721861439378,-939.19,0.00013698,2]
[333094205,1721861439388,-611.13,0.00013698,2]
[333094206,1721861439400,-500.0,0.00013698,2]
[333094207,1721861439409,-1644.82,0.00013698,2]
[333094208,1721861439419,-500.0,0.00013698,2]
[333094209,1721861439428,-3441.13,0.00013698,2]
[333094210,1721861439438,-500.0,0.00013698,2]
[333094211,1721861439448,-500.0,0.00013698,2]
[333094213,1721861439458,-518.12237967,0.00013698,2]
[333094215,1721861439468,-500.0,0.00013698,2]
[333094216,1721861439478,-1379.97,0.00013698,2]
[333094217,1721861439488,-3209.96,0.00013698,2]
[333094218,1721861439497,-686.15,0.00013698,2]
[333094219,1721861439507,-500.0,0.00013698,2]
[333094220,1721861439517,-1432.97,0.00013698,2]
[333094222,1721861439527,-1014.54,0.00013698,2]
[333094224,1721861439536,-500.0,0.00013698,2]
[333094225,1721861439547,-500.0,0.00013698,2]
[333094226,1721861439558,-3737.19,0.00013698,2]
[333094227,1721861439568,-500.0,0.00013698,2]
[333094228,1721861439580,-1016.8,0.00013698,2]
[333094229,1721861439591,-543.95,0.00013698,2]
[333094230,1721861439602,-1396.68,0.00013698,2]
[333094231,1721861439613,-955.63,0.00013698,2]
[333094232,1721861439625,-1177.01,0.00013698,2]
[333094233,1721861439636,-551.39,0.00013698,2]
[333094234,1721861439648,-1660.81,0.00013698,2]
[333094235,1721861439659,-1056.73,0.00013698,2]
[333094236,1721861439670,-500.0,0.00013698,2]
[333094237,1721861439680,-500.0,0.00013698,2]
[333094238,1721861439692,-753.42,0.00013698,2]
[333094239,1721861439703,-1197.68,0.00013698,2]
[333094240,1721861439714,-3684.86,0.00013698,2]
[333094241,1721861439724,-1634.97,0.00013698,2]
[333094242,1721861439735,-3545.33,0.00013698,2]
[333094243,1721861439746,-537.23,0.00013698,2]
[333094244,1721861439758,-7615.44,0.00013698,2]
[333094245,1721861439769,-991.12,0.00013698,2]
[333094246,1721861439780,-738.95,0.00013698,2]
[333094247,1721861439791,-1668.89,0.00013698,2]
[333094248,1721861439803,-7243.13,0.00013698,2]
[333094250,1721861439813,-500.0,0.00013698,2]
[333094252,1721861439825,-500.0,0.00013698,2]
[333094253,1721861439837,-1413.03,0.00013698,2]
[333094255,1721861439847,-568.02,0.00013698,2]
[333094257,1721861439856,-575.98,0.00013698,2]
[333094259,1721861439867,-661.65,0.00013698,2]
[333094261,1721861439878,-500.0,0.00013698,2]
[333094262,1721861439887,-524.69,0.00013698,2]
[333094264,1721861439901,-500.0,0.00013698,2]
[333094265,1721861439913,-2255.01,0.00013698,2]
[333094266,1721861439924,-2255.01,0.00013698,2]
[333094267,1721861439935,-2255.01,0.00013698,2]
[333094268,1721861439946,-2255.01,0.00013698,2]
[333094269,1721861439956,-2118.12,0.00013698,2]
[333094270,1721861439965,-2255.01,0.00013698,2]
[333094271,1721861439976,-2255.01,0.00013698,2]
[333094272,1721861439985,-2255.01,0.00013698,2]
[333094273,1721861439995,-2255.01,0.00013698,2]
[333094274,1721861440004,-500.0,0.00013698,2]
[333094275,1721861440015,-725.57,0.00013698,2]
[333094276,1721861440024,-1132.09,0.00013698,2]
[333094277,1721861440034,-748.92,0.00013698,2]
[333094278,1721861440044,-500.0,0.00013698,2]
[333094279,1721861440054,-1606.78,0.00013698,2]
[333094280,1721861440063,-500.0,0.00013698,2]
[333094281,1721861440074,-507.0263962,0.00013698,2]
[333094282,1721861440086,-3485.56,0.00013698,2]
[333094283,1721861440097,-1293.65,0.00013698,2]
[333094284,1721861440109,-579.44,0.00013698,2]
[333094285,1721861440121,-500.0,0.00013698,2]
[333094286,1721861440131,-500.0,0.00013698,2]
[333094287,1721861440143,-2004.35,0.00013698,2]
[333094288,1721861440152,-500.0,0.00013698,2]
[333094289,1721861440164,-500.0,0.00013698,2]
[333094290,1721861440176,-500.0,0.00013698,2]
[333094291,1721861440187,-500.0,0.00013698,2]
[333094292,1721861440199,-500.0,0.00013698,2]
[333094293,1721861440210,-2130.2,0.00013698,2]
[333094294,1721861440220,-500.0,0.00013698,2]
[333094295,1721861440231,-500.0,0.00013698,2]
[333094296,1721861440244,-1978.78,0.00013698,2]
[333094297,1721861440256,-500.0,0.00013698,2]
[333094298,1721861440266,-8505.26,0.00013698,2]
[333094299,1721861440277,-1294.25,0.00013698,2]
[333094300,1721861440288,-603.76,0.00013698,2]
[333094301,1721861440298,-500.0,0.00013698,2]
[333094302,1721861440309,-11003.78,0.00013698,2]
[333094303,1721861440319,-1949.92,0.00013698,2]
[333094304,1721861440330,-500.0,0.00013698,2]
[333094305,1721861440340,-500.0,0.00013698,2]
[333094306,1721861440351,-500.0,0.00013698,2]
[333094307,1721861440362,-808.86,0.00013698,2]
[333094308,1721861440372,-1586.87,0.00013698,2]
[333094309,1721861440383,-660.65,0.00013698,2]
[333094310,1721861440393,-5248.51,0.00013698,2]
[333094311,1721861440402,-500.0,0.00013698,2]
[333094312,1721861440412,-505.35167581,0.00013698,2]
[333094313,1721861440421,-500.0,0.00013698,2]
[333094314,1721861440432,-500.0,0.00013698,2]
[333094315,1721861440442,-2228.78,0.00013698,2]
[333094316,1721861440452,-500.0,0.00013698,2]
[333094317,1721861440461,-500.0,0.00013698,2]
[333094318,1721861440471,-560.2441168,0.00013698,2]
[333094319,1721861440481,-500.0,0.00013698,2]
[333094320,1721861440491,-500.0,0.00013698,2]
[333094321,1721861440501,-478.5614705,0.00013698,2]
[333094322,1721861440511,-500.0,0.00013698,2]
[333094323,1721861440520,-500.0,0.00013698,2]
[333094324,1721861440530,-500.0,0.00013698,2]
[333094325,1721861440540,-500.0,0.00013698,2]
[333094326,1721861440550,-500.0,0.00013698,2]
[333094327,1721861440560,-500.0,0.00013698,2]
[333094328,1721861440570,-500.0,0.00013698,2]
[333094329,1721861440581,-500.0,0.00013698,2]
[333094330,1721861440591,-500.0,0.00013698,2]
[333094331,1721861440602,-500.0,0.00013698,2]
[333094332,1721861440612,-500.0,0.00013698,2]
[333094333,1721861440623,-500.0,0.00013698,2]
[333094334,1721861440636,-500.0,0.00013698,2]
[333094335,1721861440647,-290.17001305,0.00013698,2]
[333094336,1721861440657,-500.0,0.00013698,2]
[333094337,1721861440666,-500.0,0.00013698,2]
[333094338,1721861440675,-500.0,0.00013698,2]
[333094339,1721861440685,-500.0,0.00013698,2]
[333094340,1721861440695,-656.18,0.00013698,2]
[333094341,1721861440705,-268.30599,0.00013699,2]
[333094342,1721861440715,-3000.0,0.00013699,2]
[333094343,1721861440724,-150.112233,0.000137,2]
[333094344,1721861440734,-150.112233,0.000137,2]
[333094345,1721861440744,-2255.01,0.00013961,2]
[333094346,1721861440754,-11180.5476436,0.00013962,2]
[333094347,1721861440764,-31865.92385925,0.00013962,5]
[333094348,1721861440954,-1981.57033308,0.00013962,5]
[333094349,1721861441131,-500.0,0.00013698,2]
[333094350,1721861441141,-500.0,0.00013698,2]
[333094351,1721861441151,-1700.60376514,0.00013962,5]
[333094352,1721861441265,-507.17263101,0.00013962,5]
[333094383,1721861443201,-500.0,0.00013698,2]
[333094386,1721861443213,-972.27,0.00013698,2]
[333094388,1721861443225,-4231.20005947,0.00013962,5]
[333096718,1721862448186,-200.0,9.801e-05,2]
[333096719,1721862448214,-2309.669614,9.817e-05,2]
[333096720,1721862451104,-200.0,9.81e-05,2]
[333096721,1721862451129,-1100.82678851,9.817e-05,2]
[333096725,1721862554096,-657.52498015,9.719e-05,2]
[333096726,1721862557097,-23.8893354,9.719e-05,2]
[333096727,1721862557119,-200.0,9.72e-05,2]
[333096728,1721862557143,-300.0,9.816e-05,2]
[333096729,1721862557167,-2371.37393262,9.817e-05,2]
[333096730,1721862557191,-218.75120258,9.817e-05,2]
[333096731,1721862557218,-21489.50359749,9.817e-05,2]
[333096732,1721862557242,-270.72596101,9.999e-05,2]
[333096733,1721862557267,-201.55613916,9.999e-05,2]
[333096734,1721862557292,-165.52852674,9.999e-05,2]
[333096735,1721862557320,-783.20081076,9.999e-05,2]
[333096736,1721862557346,-207.62837016,9.999e-05,2]
[333096737,1721862557368,-191.25080949,9.999e-05,2]
[333096738,1721862557392,-156.4621121,9.999e-05,2]
[333096739,1721862557417,-530.95109038,9.999e-05,2]
[333096740,1721862557443,-180.30966093,9.999e-05,2]
[333096741,1721862557467,-459.20823569,9.999e-05,2]
[333096742,1721862557491,-154.94557435,9.999e-05,2]
[333096743,1721862557514,-154.71377951,9.999e-05,2]
[333096744,1721862557537,-219.80294038,9.999e-05,2]
[333096745,1721862557560,-642.86798477,9.999e-05,2]
[333096746,1721862557587,-403.29212142,9.999e-05,2]
[333096747,1721862557613,-848.60176643,9.999e-05,2]
[333096748,1721862557636,-968.2231781,9.999e-05,2]
[333096749,1721862557660,-154.69833824,0.0001,2]
[333096750,1721862557683,-419.0,0.00010798,2]
[333096751,1721862557708,-279.46,0.00010959,2]
[333096752,1721862557732,-491.67,0.00010959,2]
[333096753,1721862557755,-493.67,0.00010959,2]
[333096754,1721862557780,-411.39,0.00010959,2]
[333096755,1721862557806,-342.83,0.00010959,2]
[333096756,1721862557831,-285.69,0.00010959,2]
[333096757,1721862557854,-238.08,0.00010959,2]
[333096758,1721862557876,-198.4,0.00010959,2]
[333096759,1721862557899,-182.057621,0.00011033,2]
[333096760,1721862557922,-400.0,0.0001109,2]
[333096761,1721862557947,-182.057621,0.00011148,2]
[333096762,1721862557969,-182.057621,0.00011263,2]
[333096763,1721862557991,-182.057621,0.00011378,2]
[333096764,1721862558014,-182.057621,0.00011493,2]
[333096765,1721862558037,-182.057621,0.00011608,2]
[333096766,1721862559067,165.33,0.00010959,2]
[333096767,1721862562866,170.51212001,9.9e-05,2]
[333096768,1721862570194,826.67,0.00010959,2]
[333096769,1721862576701,3196.08,0.00011608,2]
[333096770,1721862576726,4030.969312,0.00011608,2]
[333096771,1721862576751,1485.18645344,0.00011608,2]
[333096798,1721862633542,-200.0,9.82e-05,2]
[333096800,1721862633553,-503.7636435,9.999e-05,2]
[333096803,1721862633566,-27.65677521,9.999e-05,2]
[333096805,1721862633575,-400.0,0.0001119,2]
[333096807,1721862633585,-10733.89727161,0.00011608,2]
[333096809,1721862633595,-1625.75328864,0.00011608,2]
[333096811,1721862633604,-233.0916429,0.00011608,2]
[333096813,1721862633614,-981.56131075,0.00011608,2]
[333096814,1721862633625,-154.83736516,0.00011608,2]
[333096816,1721862633634,-156.59429784,0.00011608,2]
[333096818,1721862633644,-409.6961571,0.00012453,2]
[333096820,1721862633654,-600.0,0.00012967,2]
[333096822,1721862633664,-200.0,0.00013425,2]
[333096824,1721862633673,-4493.42618134,0.00013598,2]
[333096826,1721862633683,-1111.04593011,0.00013687,2]
[333096828,1721862633692,-75535.7011222,0.00013688,2]
[333096830,1721862633702,-84180.79517816,0.0001369,2]
[333096898,1721862638914,-621.10261512,0.0001369,2]
[333096899,1721862638926,-76277.9118442,0.0001369,2]
[333096900,1721862638935,-500.0,0.00013698,2]
[333096901,1721862638945,-500.0,0.00013698,2]
[333096902,1721862638954,-500.0,0.00013698,2]
[333096903,1721862638963,-500.0,0.00013698,2]
[333096904,1721862638973,-500.0,0.00013698,2]
[333096905,1721862638983,-500.0,0.00013698,2]
[333096906,1721862638992,-500.0,0.00013698,2]
[333096907,1721862639002,-500.0,0.00013698,2]
[333096908,1721862639011,-500.0,0.00013698,2]
[333096909,1721862639021,-500.0,0.00013698,2]
[333096910,1721862639030,-500.0,0.00013698,2]
[333096911,1721862639040,-1143.49,0.00013698,2]
[333096912,1721862639050,-500.0,0.00013698,2]
[333096913,1721862639060,-500.0,0.00013698,2]
[333096914,1721862639070,-500.0,0.00013698,2]
[333096915,1721862639080,-500.0,0.00013698,2]
[333096916,1721862639089,-500.0,0.00013698,2]
[333096917,1721862639099,-500.0,0.00013698,2]
[333096918,1721862639108,-500.0,0.00013698,2]
[333096919,1721862639118,-1921.04,0.00013698,2]
[333096920,1721862639132,-500.0,0.00013698,2]
[333096921,1721862639141,-958.34,0.00013698,2]
[333096922,1721862639151,-500.0,0.00013698,2]
[333096923,1721862639161,-500.0,0.00013698,2]
[333096924,1721862639171,-500.0,0.00013698,2]
[333096925,1721862639180,-500.0,0.00013698,2]
[333096926,1721862639190,-500.0,0.00013698,2]
[333096927,1721862639199,-500.0,0.00013698,2]
[333096928,1721862639208,-500.0,0.00013698,2]
[333096929,1721862639218,-625.66,0.00013698,2]
[333096930,1721862639227,-1809.58,0.00013698,2]
[333096931,1721862639237,-1724.91,0.00013698,2]
[333096932,1721862639247,-1077.39,0.00013698,2]
[333096933,1721862639256,-500.0,0.00013698,2]
[333096934,1721862639265,-500.0,0.00013698,2]
[333096935,1721862639275,-500.0,0.00013698,2]
[333096936,1721862639285,-500.0,0.00013698,2]
[333096937,1721862639294,-500.0,0.00013698,2]
[333096938,1721862639304,-1414.69,0.00013698,2]